fUSD/lending_fUSD_20240425
["ID","MTS","AMOUNT","RATE_DAILY","PERIOD"]
[323519489,1714065040653,-611.87,0.00011232,2]
[323519490,1714065040663,-549.32,0.00011232,2]
[323519491,1714065040673,-500.0,0.00011232,2]
[323519492,1714065040682,-500.0,0.00011232,2]
[323519493,1714065040693,-661.16,0.00011232,2]
[323519494,1714065040704,-500.0,0.00011232,2]
[323519495,1714065040713,-500.0,0.00011232,2]
[323519496,1714065040722,-690.86,0.00011232,2]
[323519497,1714065040731,-500.0,0.00011232,2]
[323519498,1714065040740,-620.14,0.00011232,2]
[323519499,1714065040749,-583.59,0.00011232,2]
[323519500,1714065040759,-628.72,0.00011232,2]
[323519501,1714065040769,-500.0,0.00011232,2]
[323519502,1714065040778,-500.0,0.00011232,2]
[323519503,1714065040788,-500.0,0.00011232,2]
[323519504,1714065040797,-500.0,0.00011232,2]
[323519505,1714065040807,-500.0,0.00011232,2]
[323519506,1714065040815,-792.12,0.00011232,2]
[323519507,1714065040826,-500.0,0.00011232,2]
[323519508,1714065040836,-500.0,0.00011232,2]
[323519509,1714065040847,-630.56,0.00011232,2]
[323519510,1714065040856,-500.0,0.00011232,2]
[323519511,1714065040866,-500.0,0.00011232,2]
[323519512,1714065040875,-500.0,0.00011232,2]
[323519513,1714065040885,-500.0,0.00011232,2]
[323519514,1714065040893,-500.0,0.00011232,2]
[323519515,1714065040903,-500.0,0.00011232,2]
[323519516,1714065040912,-1041.26,0.00011232,2]
[323519517,1714065040923,-500.0,0.00011232,2]
[323519518,1714065040934,-500.0,0.00011232,2]
[323519519,1714065040943,-540.45,0.00011232,2]
[323519520,1714065040953,-500.0,0.00011232,2]
[323519521,1714065040963,-500.0,0.00011232,2]
[323519522,1714065040972,-500.0,0.00011232,2]
[323519523,1714065040981,-500.0,0.00011232,2]
[323519524,1714065040991,-500.0,0.00011232,2]
[323519525,1714065041001,-500.0,0.00011232,2]
[323519526,1714065041010,-500.0,0.00011232,2]
[323519527,1714065041020,-500.0,0.00011232,2]
[323519528,1714065041029,-500.0,0.00011232,2]
[323519529,1714065041039,-621.83,0.00011232,2]
[323519530,1714065041049,-500.0,0.00011232,2]
[323519531,1714065041059,-500.0,0.00011232,2]
[323519532,1714065041070,-500.0,0.00011232,2]
[323519533,1714065041079,-500.0,0.00011232,2]
[323519534,1714065041089,-179.13,0.00011232,2]
[323519535,1714065041100,-500.0,0.00011232,2]
[323519536,1714065041109,-680.34,0.00011232,2]
[323519537,1714065041118,-619.8,0.00011232,2]
[323519538,1714065041127,-500.0,0.00011232,2]
[323519539,1714065041137,-500.0,0.00011232,2]
[323519540,1714065041146,-500.0,0.00011232,2]
[323519541,1714065041156,-500.0,0.00011232,2]
[323519542,1714065041166,-500.0,0.00011232,2]
[323519543,1714065041175,-500.0,0.00011232,2]
[323519544,1714065041185,-500.0,0.00011232,2]
[323519545,1714065041195,-819.88,0.00011232,2]
[323519546,1714065041206,-500.0,0.00011232,2]
[323519547,1714065041215,-500.0,0.00011232,2]
[323519548,1714065041225,-500.0,0.00011232,2]
[323519549,1714065041234,-661.26,0.00011232,2]
[323519550,1714065041243,-500.0,0.00011232,2]
[323519551,1714065041252,-576.4,0.00011232,2]
[323519552,1714065041261,-672.55,0.00011232,2]
[323519553,1714065041270,-808.76,0.00011232,2]
[323519554,1714065041280,-500.0,0.00011232,2]
[323519555,1714065041289,-500.0,0.00011232,2]
[323519556,1714065041299,-500.0,0.00011232,2]
[323519557,1714065041309,-500.0,0.00011232,2]
[323519558,1714065041319,-500.0,0.00011232,2]
[323519559,1714065041328,-500.0,0.00011232,2]
[323519560,1714065041337,-500.0,0.00011232,2]
[323519561,1714065041348,-540.8,0.00011232,2]
[323519562,1714065041357,-500.0,0.00011232,2]
[323519563,1714065041366,-500.0,0.00011232,2]
[323519564,1714065041376,-500.0,0.00011232,2]
[323519565,1714065041385,-500.0,0.00011232,2]
[323519566,1714065041394,-500.0,0.00011232,2]
[323519567,1714065041403,-504.06157844,0.00011232,2]
[323519568,1714065041413,-570.31,0.00011232,2]
[323519569,1714065041423,-150.0,0.00011232,2]
[323519570,1714065041432,-500.0,0.00011232,2]
[323519571,1714065041441,-500.0,0.00011232,2]
[323519572,1714065041644,-500.0,0.00011232,2]
[323519573,1714065041655,-500.0,0.00011232,2]
[323519574,1714065041665,-500.0,0.00011232,2]
[323519575,1714065041674,-310.53714308,0.00011232,2]
[323519576,1714065041684,-500.0,0.00011232,2]
[323519577,1714065041693,-500.0,0.00011232,2]
[323519578,1714065041707,-471.3,0.00011232,2]
[323519579,1714065041717,-500.0,0.00011232,2]
[323519580,1714065041728,-500.0,0.00011232,2]
[323519581,1714065041738,-500.0,0.00011232,2]
[323519582,1714065041748,-500.0,0.00011232,2]
[323519583,1714065041757,-500.0,0.00011232,2]
[323519584,1714065041766,-500.0,0.00011232,2]
[323519585,1714065041775,-500.0,0.00011232,2]
[323519586,1714065041784,-500.0,0.00011232,2]
[323519587,1714065041794,-500.0,0.00011232,2]
[323519588,1714065041803,-500.0,0.00011232,2]
[323519589,1714065041813,-500.0,0.00011232,2]
[323519590,1714065041823,-464.98,0.00011232,2]
[323519591,1714065041832,-581.09,0.00011232,2]
[323519592,1714065041842,-500.0,0.00011232,2]
[323519593,1714065041852,-500.0,0.00011232,2]
[323519594,1714065041862,-500.0,0.00011232,2]
[323519595,1714065041871,-717.78,0.00011232,2]
[323519596,1714065041880,-500.0,0.00011232,2]
[323519597,1714065041890,-500.0,0.00011232,2]
[323519598,1714065041899,-500.0,0.00011232,2]
[323519599,1714065041909,-500.0,0.00011232,2]
[323519600,1714065041920,-740.17,0.00011232,2]
[323519601,1714065041931,-774.14,0.00011232,2]
[323519602,1714065041941,-771.14,0.00011232,2]
[323519603,1714065041951,-535.05,0.00011232,2]
[323519604,1714065041961,-500.0,0.00011232,2]
[323519605,1714065041970,-895.3,0.00011232,2]
[323519606,1714065041979,-500.0,0.00011232,2]
[323519607,1714065041988,-500.0,0.00011232,2]
[323519608,1714065041997,-500.0,0.00011232,2]
[323519609,1714065042006,-500.0,0.00011232,2]
[323519610,1714065042015,-550.86,0.00011232,2]
[323519611,1714065042025,-1011.74,0.00011232,2]
[323519612,1714065042034,-500.0,0.00011232,2]
[323519613,1714065042044,-500.0,0.00011232,2]
[323519614,1714065042053,-500.0,0.00011232,2]
[323519615,1714065042065,-500.0,0.00011232,2]
[323519616,1714065042074,-500.0,0.00011232,2]
[323519617,1714065042083,-912.33,0.00011232,2]
[323519618,1714065042092,-8752.19,0.00011232,2]
[323519619,1714065042101,-500.0,0.00011232,2]
[323519620,1714065042111,-500.0,0.00011232,2]
[323519621,1714065042122,-500.0,0.00011232,2]
[323519622,1714065042132,-1558.57,0.00011232,2]
[323519623,1714065042142,-500.0,0.00011232,2]
[323519624,1714065042152,-500.0,0.00011232,2]
[323519625,1714065042162,-500.0,0.00011232,2]
[323519626,1714065042171,-500.0,0.00011232,2]
[323519627,1714065042181,-500.0,0.00011232,2]
[323519628,1714065042190,-500.0,0.00011232,2]
[323519629,1714065042199,-1127.51,0.00011232,2]
[323519630,1714065042210,-500.0,0.00011232,2]
[323519631,1714065042220,-500.0,0.00011232,2]
[323519632,1714065042229,-500.0,0.00011232,2]
[323519633,1714065042239,-689.45,0.00011232,2]
[323519634,1714065042249,-500.0,0.00011232,2]
[323519635,1714065042259,-586.6,0.00011232,2]
[323519636,1714065042268,-1294.8,0.00011232,2]
[323519637,1714065042277,-1037.31,0.00011232,2]
[323519638,1714065042286,-896.22,0.00011232,2]
[323519639,1714065042295,-447.96547357,0.00011232,2]
[323519640,1714065042305,-500.0,0.00011232,2]
[323519641,1714065042314,-500.0,0.00011232,2]
[323519642,1714065042323,-763.19,0.00011232,2]
[323519643,1714065042332,-500.0,0.00011232,2]
[323519644,1714065042342,-500.0,0.00011232,2]
[323519645,1714065042351,-500.0,0.00011232,2]
[323519646,1714065042362,-612.44,0.00011232,2]
[323519647,1714065042372,-24489.79,0.00011232,2]
[323519648,1714065042382,-1011.23,0.00011232,2]
[323519649,1714065042392,-500.0,0.00011232,2]
[323519651,1714065042401,-2736.73,0.00011232,2]
[323519653,1714065042410,-955.05,0.00011232,2]
[323519655,1714065042419,-500.0,0.00011232,2]
[323519656,1714065042429,-2966.46,0.00011232,2]
[323519657,1714065042438,-872.85,0.00011232,2]
[323519658,1714065042447,-927.96,0.00011232,2]
[323519659,1714065042458,-500.0,0.00011232,2]
[323519660,1714065042468,-623.14,0.00011232,2]
[323519661,1714065042477,-765.86,0.00011232,2]
[323519662,1714065042486,-667.24,0.00011232,2]
[323519663,1714065042500,-500.0,0.00011232,2]
[323519665,1714065042509,-559.47,0.00011232,2]
[323519666,1714065042519,-3574.71,0.00011232,2]
[323519668,1714065042529,-500.0,0.00011232,2]
[323519670,1714065042538,-947.66,0.00011232,2]
[323519672,1714065042547,-556.83,0.00011232,2]
[323519674,1714065042556,-789.21,0.00011232,2]
[323519676,1714065042565,-868.18,0.00011232,2]
[323519677,1714065042575,-673.77,0.00011232,2]
[323519678,1714065042585,-587.03,0.00011232,2]
[323519679,1714065042594,-500.0,0.00011232,2]
[323519680,1714065042605,-500.0,0.00011232,2]
[323519681,1714065042616,-538.58,0.00011232,2]
[323519682,1714065042626,-500.0,0.00011232,2]
[323519683,1714065042635,-586.1,0.00011232,2]
[323519684,1714065042645,-614.98,0.00011232,2]
[323519685,1714065042654,-500.0,0.00011232,2]
[323519686,1714065042666,-500.0,0.00011232,2]
[323519687,1714065042676,-3111.44,0.00011232,2]
[323519688,1714065042687,-500.0,0.00011232,2]
[323519689,1714065042698,-5879.87,0.00011232,2]
[323519690,1714065042711,-1513.91,0.00011232,2]
[323519691,1714065042720,-2983.41,0.00011232,2]
[323519692,1714065042730,-500.0,0.00011232,2]
[323519693,1714065042742,-500.0,0.00011232,2]
[323519694,1714065042751,-580.03,0.00011232,2]
[323519695,1714065042761,-538.45,0.00011232,2]
[323519696,1714065042770,-548.66,0.00011232,2]
[323519697,1714065042780,-583.97,0.00011232,2]
[323519698,1714065042790,-500.0,0.00011232,2]
[323519699,1714065042800,-500.0,0.00011232,2]
[323519700,1714065042809,-500.0,0.00011232,2]
[323519701,1714065042818,-1081.8,0.00011232,2]
[323519702,1714065042828,-500.0,0.00011232,2]
[323519703,1714065042837,-500.0,0.00011232,2]
[323519704,1714065042847,-4145.52,0.00011232,2]
[323519705,1714065042856,-500.0,0.00011232,2]
[323519706,1714065042866,-500.0,0.00011232,2]
[323519707,1714065042875,-500.0,0.00011232,2]
[323519709,1714065042885,-220.0,0.00011232,2]
[323519710,1714065042894,-1710.19,0.00011232,2]
[323519712,1714065042904,-901.67,0.00011232,2]
[323519714,1714065042913,-500.0,0.00011232,2]
[323519716,1714065042923,-500.0,0.00011232,2]
[323519718,1714065042933,-500.0,0.00011232,2]
[323519719,1714065042943,-1100.88,0.00011232,2]
[323519721,1714065042954,-500.0,0.00011232,2]
[323519722,1714065042962,-204.12,0.00011232,2]
[323519724,1714065042972,-559.33,0.00011232,2]
[323519725,1714065042981,-1776.35,0.00011232,2]
[323519726,1714065042990,-500.0,0.00011232,2]
[323519727,1714065043000,-1130.12,0.00011232,2]
[323519728,1714065043010,-530.57,0.00011232,2]
[323519729,1714065043021,-500.0,0.00011232,2]
[323519730,1714065043031,-600.59,0.00011232,2]
[323519731,1714065043040,-505.01,0.00011232,2]
[323519732,1714065043049,-500.0,0.00011232,2]
[323519733,1714065043059,-708.71,0.00011232,2]
[323519734,1714065043068,-1352.3,0.00011232,2]
[323519735,1714065043078,-500.0,0.00011232,2]
[323519736,1714065043087,-4481.74,0.00011232,2]
[323519738,1714065043096,-1559.31,0.00011232,2]
[323519740,1714065043106,-2216.57,0.00011232,2]
[323519743,1714065043116,-500.0,0.00011232,2]
[323519747,1714065043125,-500.0,0.00011232,2]
[323519749,1714065043135,-1771.83,0.00011232,2]
[323519751,1714065043146,-500.0,0.00011232,2]
[323519752,1714065043155,-647.31,0.00011232,2]
[323519755,1714065043165,-500.0,0.00011232,2]
[323519756,1714065043174,-952.03,0.00011232,2]
[323519758,1714065043182,-500.0,0.00011232,2]
[323519760,1714065043192,-500.0,0.00011232,2]
[323519762,1714065043201,-870.17,0.00011232,2]
[323519764,1714065043212,-3115.48,0.00011232,2]
[323519766,1714065043221,-551.58,0.00011232,2]
[323519768,1714065043230,-640.99,0.00011232,2]
[323519770,1714065043239,-500.0,0.00011232,2]
[323519772,1714065043248,-2465.3,0.00011232,2]
[323519774,1714065043258,-500.0,0.00011232,2]
[323519776,1714065043267,-500.0,0.00011232,2]
[323519778,1714065043276,-954.97,0.00011232,2]
[323519780,1714065043286,-716.49,0.00011232,2]
[323519781,1714065043295,-500.0,0.00011232,2]
[323519782,1714065043305,-500.0,0.00011232,2]
[323519783,1714065043314,-500.0,0.00011232,2]
[323519784,1714065043326,-657.96,0.00011232,2]
[323519785,1714065043336,-500.0,0.00011232,2]
[323519786,1714065043347,-150.0,0.00011235,2]
[323519787,1714065043357,-216.73340824,0.00011294,2]
[323519788,1714065043366,-1000.0,0.000113,4]
[323519789,1714065043376,-150.0,0.00011349,2]
[323519790,1714065043385,-200.0,0.0001137,2]
[323519791,1714065043395,-150.0,0.00011388,2]
[323519792,1714065043405,-1200.0,0.000114,4]
[323519793,1714065043415,-216.73340824,0.00011456,2]
[323519794,1714065043424,-200.0,0.000115,4]
[323519795,1714065043435,-500.0,0.00011505,2]
[323519796,1714065043444,-784.11,0.00011505,2]
[323519797,1714065043457,-1135.29,0.00011505,2]
[323519798,1714065043467,-513.93,0.00011505,2]
[323519799,1714065043476,-926.83,0.00011505,2]
[323519800,1714065043486,-577.15,0.00011505,2]
[323519801,1714065043495,-769.41,0.00011505,2]
[323519802,1714065043504,-500.0,0.00011505,2]
[323519803,1714065043514,-1349.73,0.00011505,2]
[323519804,1714065043524,-529.44,0.00011505,2]
[323519805,1714065043533,-2025.81,0.00011505,2]
[323519806,1714065043543,-651.18,0.00011505,2]
[323519807,1714065043553,-1281.88,0.00011505,2]
[323519808,1714065043562,-3816.8,0.00011505,2]
[323519809,1714065043571,-520.62,0.00011505,2]
[323519810,1714065043580,-1264.21,0.00011505,2]
[323519811,1714065043590,-523.05,0.00011505,2]
[323519812,1714065043599,-840.64,0.00011505,2]
[323519813,1714065043608,-725.06,0.00011505,2]
[323519814,1714065043619,-500.0,0.00011505,2]
[323519815,1714065043632,-597.82,0.00011505,2]
[323519816,1714065043642,-1426.59,0.00011505,2]
[323519817,1714065043652,-500.0,0.00011505,2]
[323519818,1714065043661,-598.24,0.00011505,2]
[323519819,1714065043671,-500.0,0.00011505,2]
[323519820,1714065043680,-4081.27,0.00011505,2]
[323519821,1714065043690,-1743.65,0.00011505,2]
[323519822,1714065043700,-8022.4,0.00011505,2]
[323519823,1714065043711,-500.0,0.00011506,2]
[323519824,1714065043721,-612.72579862,0.00011506,2]
[323519825,1714065043731,-500.0,0.00011506,2]
[323519826,1714065043740,-500.0,0.00011506,2]
[323519827,1714065043749,-500.0,0.00011506,2]
[323519828,1714065043758,-500.0,0.00011506,2]
[323519829,1714065043767,-500.0,0.00011506,2]
[323519830,1714065043777,-723.8,0.00011506,2]
[323519831,1714065043786,-500.0,0.00011506,2]
[323519832,1714065043795,-500.0,0.00011506,2]
[323519833,1714065043804,-500.0,0.00011506,2]
[323519834,1714065043813,-500.0,0.00011506,2]
[323519835,1714065043822,-500.0,0.00011506,2]
[323519836,1714065043831,-500.0,0.00011506,2]
[323519837,1714065043840,-500.0,0.00011506,2]
[323519838,1714065043849,-914.48,0.00011506,2]
[323519839,1714065043858,-500.0,0.00011506,2]
[323519840,1714065043867,-500.0,0.00011506,2]
[323519841,1714065043875,-500.0,0.00011506,2]
[323519842,1714065043884,-602.14,0.00011506,2]
[323519843,1714065043893,-500.0,0.00011506,2]
[323519844,1714065043902,-950.6,0.00011506,2]
[323519845,1714065043911,-540.97,0.00011506,2]
[323519846,1714065043920,-523.2,0.00011506,2]
[323519847,1714065043930,-500.0,0.00011506,2]
[323519848,1714065043939,-578.07,0.00011506,2]
[323519849,1714065043949,-500.0,0.00011506,2]
[323519850,1714065043961,-611.87,0.00011506,2]
[323519851,1714065043969,-549.32,0.00011506,2]
[323519852,1714065043978,-500.0,0.00011506,2]
[323519853,1714065043987,-500.0,0.00011506,2]
[323519854,1714065043996,-661.16,0.00011506,2]
[323519855,1714065044006,-500.0,0.00011506,2]
[323519856,1714065044015,-500.0,0.00011506,2]
[323519857,1714065044024,-690.86,0.00011506,2]
[323519858,1714065044034,-620.14,0.00011506,2]
[323519859,1714065044043,-583.59,0.00011506,2]
[323519860,1714065044052,-628.72,0.00011506,2]
[323519861,1714065044062,-500.0,0.00011506,2]
[323519862,1714065044071,-500.0,0.00011506,2]
[323519863,1714065044080,-500.0,0.00011506,2]
[323519864,1714065044089,-500.0,0.00011506,2]
[323519865,1714065044098,-500.0,0.00011506,2]
[323519866,1714065044108,-792.12,0.00011506,2]
[323519867,1714065044117,-500.0,0.00011506,2]
[323519868,1714065044126,-500.0,0.00011506,2]
[323519869,1714065044135,-630.56,0.00011506,2]
[323519870,1714065044144,-500.0,0.00011506,2]
[323519871,1714065044153,-500.0,0.00011506,2]
[323519872,1714065044162,-500.0,0.00011506,2]
[323519873,1714065044171,-500.0,0.00011506,2]
[323519874,1714065044181,-500.0,0.00011506,2]
[323519875,1714065044191,-500.0,0.00011506,2]
[323519876,1714065044201,-1041.26,0.00011506,2]
[323519877,1714065044213,-500.0,0.00011506,2]
[323519878,1714065044223,-500.0,0.00011506,2]
[323519879,1714065044232,-540.45,0.00011506,2]
[323519880,1714065044241,-500.0,0.00011506,2]
[323519881,1714065044250,-500.0,0.00011506,2]
[323519882,1714065044259,-500.0,0.00011506,2]
[323519883,1714065044268,-500.0,0.00011506,2]
[323519884,1714065044278,-500.0,0.00011506,2]
[323519885,1714065044286,-497.64317768,0.00011506,2]
[323519886,1714065044295,-500.0,0.00011506,2]
[323519887,1714065044305,-500.0,0.00011506,2]
[323519888,1714065044315,-621.83,0.00011506,2]
[323519889,1714065044324,-500.0,0.00011506,2]
[323519890,1714065044333,-184.72109378,0.00011506,2]
[323519891,1714065044342,-500.0,0.00011506,2]
[323519892,1714065044351,-500.0,0.00011506,2]
[323519893,1714065044360,-434.32569639,0.00011506,2]
[323519894,1714065044370,-680.34,0.00011506,2]
[323519895,1714065044379,-619.8,0.00011506,2]
[323519896,1714065044388,-500.0,0.00011506,2]
[323519897,1714065044398,-500.0,0.00011506,2]
[323519898,1714065044407,-500.0,0.00011506,2]
[323519899,1714065044416,-500.0,0.00011506,2]
[323519900,1714065044426,-605.64021813,0.00011506,2]
[323519901,1714065044435,-500.0,0.00011506,2]
[323519902,1714065044444,-500.0,0.00011506,2]
[323519903,1714065044454,-819.88,0.00011506,2]
[323519904,1714065044464,-500.0,0.00011506,2]
[323519905,1714065044473,-356.22,0.00011506,2]
[323519906,1714065044483,-500.0,0.00011506,2]
[323519907,1714065044493,-661.26,0.00011506,2]
[323519908,1714065044503,-500.0,0.00011506,2]
[323519909,1714065044512,-576.4,0.00011506,2]
[323519910,1714065044521,-672.55,0.00011506,2]
[323519911,1714065044531,-808.76,0.00011506,2]
[323519912,1714065044540,-500.0,0.00011506,2]
[323519913,1714065044550,-500.0,0.00011506,2]
[323519914,1714065044559,-540.53877835,0.00011506,2]
[323519915,1714065044568,-500.0,0.00011506,2]
[323519916,1714065044578,-500.0,0.00011506,2]
[323519917,1714065044587,-500.0,0.00011506,2]
[323519918,1714065044596,-500.0,0.00011506,2]
[323519919,1714065044606,-540.8,0.00011506,2]
[323519920,1714065044616,-500.0,0.00011506,2]
[323519921,1714065044628,-500.0,0.00011506,2]
[323519922,1714065044637,-350.84852388,0.00011506,2]
[323519923,1714065044646,-500.0,0.00011506,2]
[323519924,1714065044656,-500.0,0.00011506,2]
[323519925,1714065044666,-570.31,0.00011506,2]
[323519926,1714065044675,-150.0,0.00011506,2]
[323519927,1714065044685,-500.0,0.00011506,2]
[323519928,1714065044695,-500.0,0.00011506,2]
[323519929,1714065044707,-500.0,0.00011506,2]
[323519930,1714065044717,-500.0,0.00011506,2]
[323519931,1714065044726,-500.0,0.00011506,2]
[323519932,1714065044735,-500.0,0.00011506,2]
[323519933,1714065044745,-612.84,0.00011506,2]
[323519934,1714065044754,-500.0,0.00011506,2]
[323519935,1714065044763,-500.0,0.00011506,2]
[323519936,1714065044773,-500.0,0.00011506,2]
[323519937,1714065044782,-500.0,0.00011506,2]
[323519938,1714065044791,-500.0,0.00011506,2]
[323519939,1714065044800,-500.0,0.00011506,2]
[323519940,1714065044810,-500.0,0.00011506,2]
[323519941,1714065044819,-500.0,0.00011506,2]
[323519942,1714065044828,-500.0,0.00011506,2]
[323519943,1714065044837,-500.0,0.00011506,2]
[323519944,1714065044846,-500.0,0.00011506,2]
[323519945,1714065044855,-581.09,0.00011506,2]
[323519946,1714065044864,-500.0,0.00011506,2]
[323519947,1714065044874,-500.0,0.00011506,2]
[323519948,1714065044883,-717.78,0.00011506,2]
[323519949,1714065044893,-500.0,0.00011506,2]
[323519950,1714065044902,-500.0,0.00011506,2]
[323519951,1714065045085,-500.0,0.00011506,2]
[323519952,1714065045095,-740.17,0.00011506,2]
[323519953,1714065045104,-774.14,0.00011506,2]
[323519954,1714065045114,-771.14,0.00011506,2]
[323519955,1714065045123,-535.05,0.00011506,2]
[323519956,1714065045132,-500.0,0.00011506,2]
[323519957,1714065045141,-895.3,0.00011506,2]
[323519958,1714065045150,-500.0,0.00011506,2]
[323519959,1714065045160,-500.0,0.00011506,2]
[323519960,1714065045169,-499.19760091,0.00011506,2]
[323519961,1714065045178,-500.0,0.00011506,2]
[323519962,1714065045187,-550.86,0.00011506,2]
[323519963,1714065045195,-1011.74,0.00011506,2]
[323519964,1714065045206,-500.0,0.00011506,2]
[323519965,1714065045216,-500.0,0.00011506,2]
[323519966,1714065045225,-500.0,0.00011506,2]
[323519967,1714065045234,-500.0,0.00011506,2]
[323519968,1714065045243,-912.33,0.00011506,2]
[323519969,1714065045254,-500.0,0.00011506,2]
[323519970,1714065045263,-8752.19,0.00011506,2]
[323519971,1714065045273,-500.0,0.00011506,2]
[323519972,1714065045282,-500.0,0.00011506,2]
[323519973,1714065045291,-1558.57,0.00011506,2]
[323519974,1714065045301,-500.0,0.00011506,2]
[323519975,1714065045311,-500.0,0.00011506,2]
[323519976,1714065045320,-500.0,0.00011506,2]
[323519977,1714065045329,-500.0,0.00011506,2]
[323519978,1714065045337,-276.02,0.00011506,2]
[323519979,1714065045347,-1127.51,0.00011506,2]
[323519980,1714065045357,-500.0,0.00011506,2]
[323519981,1714065045366,-500.0,0.00011506,2]
[323519982,1714065045376,-500.0,0.00011506,2]
[323519983,1714065045385,-689.45,0.00011506,2]
[323519984,1714065045393,-500.0,0.00011506,2]
[323519985,1714065045403,-586.6,0.00011506,2]
[323519986,1714065045412,-1294.8,0.00011506,2]
[323519987,1714065045421,-1037.31,0.00011506,2]
[323519988,1714065045431,-896.22,0.00011506,2]
[323519989,1714065045441,-500.0,0.00011506,2]
[323519990,1714065045451,-763.19,0.00011506,2]
[323519991,1714065045463,-500.0,0.00011506,2]
[323519992,1714065045472,-500.0,0.00011506,2]
[323519993,1714065045482,-500.0,0.00011506,2]
[323519994,1714065045491,-612.44,0.00011506,2]
[323519995,1714065045501,-24489.79,0.00011506,2]
[323519996,1714065045510,-1011.23,0.00011506,2]
[323519997,1714065045520,-500.0,0.00011506,2]
[323519998,1714065045529,-2736.73,0.00011506,2]
[323519999,1714065045538,-955.05,0.00011506,2]
[323520000,1714065045547,-500.0,0.00011506,2]
[323520001,1714065045557,-2966.46,0.00011506,2]
[323520002,1714065045566,-872.85,0.00011506,2]
[323520003,1714065045575,-927.96,0.00011506,2]
[323520004,1714065045584,-500.0,0.00011506,2]
[323520005,1714065045594,-623.14,0.00011506,2]
[323520006,1714065045603,-765.86,0.00011506,2]
[323520007,1714065045612,-667.24,0.00011506,2]
[323520008,1714065045621,-500.0,0.00011506,2]
[323520009,1714065045634,-559.47,0.00011506,2]
[323520010,1714065045643,-3574.71,0.00011506,2]
[323520011,1714065045651,-500.0,0.00011506,2]
[323520012,1714065045663,-947.66,0.00011506,2]
[323520013,1714065045672,-556.83,0.00011506,2]
[323520014,1714065045682,-789.21,0.00011506,2]
[323520015,1714065045692,-868.18,0.00011506,2]
[323520016,1714065045703,-673.77,0.00011506,2]
[323520017,1714065045715,-587.03,0.00011506,2]
[323520018,1714065045725,-500.0,0.00011506,2]
[323520019,1714065045736,-500.0,0.00011506,2]
[323520020,1714065045745,-538.58,0.00011506,2]
[323520021,1714065045755,-500.0,0.00011506,2]
[323520022,1714065045765,-586.1,0.00011506,2]
[323520023,1714065045774,-614.98,0.00011506,2]
[323520024,1714065045784,-500.0,0.00011506,2]
[323520025,1714065045794,-500.0,0.00011506,2]
[323520026,1714065045804,-3111.44,0.00011506,2]
[323520027,1714065045815,-500.0,0.00011506,2]